{"text_format":"1","workbook":"xlsx","n_sheets":12,"sheets":["Dataset","Approach 1","Approach 2","Approach 3","Approach 4","Approach 5","Approach 6","Approach 7","Approach 8","Approach 9","Copy Clipboard","Relative Reference"],"not_rendered":{"charts":0,"images":0,"macros":1,"external_links":0,"defined_names":0,"comments":0,"pivot_tables":0},"unopened":[],"bounds":{"document_bytes":16777216,"sheet_cells":100000,"rows_first":2000,"rows_last":500,"rows_between":2000,"halvings":0,"cell_chars":16384,"cell_head_chars":4096},"cells_cut":0,"cells_raw":0,"read":"whole","date_system":"1900"}

{"sheet":"Dataset","index":0,"n_rows":11,"n_cols":4,"rows_kept":11,"cut":false,"hidden":false,"merged":[[2,1,2,3]]}
[]
[]
[null,"Narration of Different Formulas"]
[]
[null,"Performing","Narration","Formula "]
[null,{"$f":"5*3+2","v":17},"Multiplication and Sum Operations","=5*3+2"]
[null,{"$f":"5*3-2","v":13},"Multiplication and Substraction Operations","=5*3-2"]
[null,{"$f":"5*3*2","v":30},"Multiplication and Multiplication Operations","=5*3*2"]
[null,{"$f":"5*3/2","v":7.5},"Multiplication and Division Operations","=5*3/2"]
[null,{"$f":"5*3/2.5","v":6},"Multiplication and Division Operations","=5*3/2.5"]
[null,{"$f":"5*3*2.5","v":37.5},"Multiplication and Multiplication Operations","=5*3*2.5"]

{"sheet":"Approach 1","index":1,"n_rows":12,"n_cols":4,"rows_kept":12,"cut":false,"hidden":false,"merged":[[2,1,2,3]]}
[]
[]
[null,"Narration of Different Formulas"]
[]
[null,"Performing","Narration","Formula "]
[null,{"$f":"5*3+2","v":17},"Multiplication and Sum Operations","=5*3+2"]
[null,{"$f":"5*3-2","v":13},"Multiplication and Substraction Operations","=5*3-2"]
[null,{"$f":"5*3*2","v":30},"Multiplication and Multiplication Operations","=5*3*2"]
[null,{"$f":"5*3/2","v":7.5},"Multiplication and Division Operations","=5*3/2"]
[null,{"$f":"5*3/2.5","v":6},"Multiplication and Division Operations","=5*3/2.5"]
[null,{"$f":"5*3*2.5","v":37.5},"Multiplication and Multiplication Operations","=5*3*2.5"]
[null,{"$f":"5*3*2.5","v":37.5}]

{"sheet":"Approach 2","index":2,"n_rows":15,"n_cols":4,"rows_kept":15,"cut":false,"hidden":false,"merged":[[2,1,2,3]]}
[]
[]
[null,"Narration of Different Formulas"]
[]
[null,"Performing","Narration","Formula "]
[null,{"$f":"5*3+2","v":17},"Multiplication and Sum Operations","=5*3+2"]
[null,{"$f":"5*3-2","v":13},"Multiplication and Substraction Operations","=5*3-2"]
[null,{"$f":"5*3-2","v":13},"Multiplication and Substraction Operations","=5*3-2"]
[null,{"$f":"5*3-2","v":13},"Multiplication and Substraction Operations","=5*3-2"]
[null,{"$f":"5*3-2","v":13},"Multiplication and Substraction Operations","=5*3-2"]
[null,{"$f":"5*3-2","v":13},"Multiplication and Substraction Operations","=5*3-2"]
[null,{"$f":"5*3*2","v":30},"Multiplication and Multiplication Operations","=5*3*2"]
[null,{"$f":"5*3/2","v":7.5},"Multiplication and Division Operations","=5*3/2"]
[null,{"$f":"5*3/2.5","v":6},"Multiplication and Division Operations","=5*3/2.5"]
[null,{"$f":"5*3*2.5","v":37.5},"Multiplication and Multiplication Operations","=5*3*2.5"]

{"sheet":"Approach 3","index":3,"n_rows":14,"n_cols":4,"rows_kept":14,"cut":false,"hidden":false,"merged":[[2,1,2,3]]}
[]
[]
[null,"Narration of Different Formulas"]
[]
[null,"Performing","Narration","Formula "]
[null,{"$f":"5*3+2","v":17},"Multiplication and Sum Operations","=5*3+2"]
[null,{"$f":"5*3-2","v":13},"Multiplication and Substraction Operations","=5*3-2"]
[null,{"$f":"5*3*2","v":30},"Multiplication and Multiplication Operations","=5*3*2"]
[null,{"$f":"5*3/2","v":7.5},"Multiplication and Division Operations","=5*3/2"]
[null,{"$f":"5*3/2.5","v":6},"Multiplication and Division Operations","=5*3/2.5"]
[null,{"$f":"5*3*2.5","v":37.5},"Multiplication and Multiplication Operations","=5*3*2.5"]
[]
[]
[null,{"$f":"5*3/2.5","v":6}]

{"sheet":"Approach 4","index":4,"n_rows":12,"n_cols":4,"rows_kept":12,"cut":false,"hidden":false,"merged":[[2,1,2,3]]}
[]
[]
[null,"Narration of Different Formulas"]
[]
[null,"Performing","Narration","Formula "]
[null,{"$f":"5*3+2","v":17},"Multiplication and Sum Operations","=5*3+2"]
[null,{"$f":"5*3-2","v":13},"Multiplication and Substraction Operations","=5*3-2"]
[null,{"$f":"5*3*2","v":30},"Multiplication and Multiplication Operations","=5*3*2"]
[null,{"$f":"5*3/2","v":7.5},"Multiplication and Division Operations","=5*3/2"]
[null,{"$f":"5*3/2.5","v":6},"Multiplication and Division Operations","=5*3/2.5"]
[null,{"$f":"5*3*2.5","v":37.5},"Multiplication and Multiplication Operations","=5*3*2.5"]
[null,{"$f":"5*3*2.5","v":37.5},"Multiplication and Multiplication Operations","=5*3*2.5"]

{"sheet":"Approach 5","index":5,"n_rows":12,"n_cols":4,"rows_kept":12,"cut":false,"hidden":false,"merged":[[2,1,2,3]]}
[]
[]
[null,"Narration of Different Formulas"]
[]
[null,"Performing","Narration","Formula "]
[null,{"$f":"5*3+2","v":17},"Multiplication and Sum Operations","=5*3+2"]
[null,{"$f":"5*3-2","v":13},"Multiplication and Substraction Operations","=5*3-2"]
[null,{"$f":"5*3*2","v":30},"Multiplication and Multiplication Operations","=5*3*2"]
[null,{"$f":"5*3/2","v":7.5},"Multiplication and Division Operations","=5*3/2"]
[null,{"$f":"5*3/2","v":7.5}]
[null,{"$f":"5*3/2.5","v":6},"Multiplication and Division Operations","=5*3/2.5"]
[null,{"$f":"5*3*2.5","v":37.5},"Multiplication and Multiplication Operations","=5*3*2.5"]

{"sheet":"Approach 6","index":6,"n_rows":17,"n_cols":4,"rows_kept":17,"cut":false,"hidden":false,"merged":[[2,1,2,3]]}
[]
[]
[null,"Narration of Different Formulas"]
[]
[null,"Performing","Narration","Formula "]
[null,{"$f":"5*3+2","v":17},"Multiplication and Sum Operations","=5*3+2"]
[null,{"$f":"5*3-2","v":13},"Multiplication and Substraction Operations","=5*3-2"]
[null,{"$f":"5*3*2","v":30},"Multiplication and Multiplication Operations","=5*3*2"]
[null,{"$f":"5*3/2","v":7.5},"Multiplication and Division Operations","=5*3/2"]
[null,{"$f":"5*3/2.5","v":6},"Multiplication and Division Operations","=5*3/2.5"]
[null,{"$f":"5*3*2.5","v":37.5},"Multiplication and Multiplication Operations","=5*3*2.5"]
[]
[null,"Performing","Narration","Formula "]
[null,{"$f":"5*3+2","v":17},"Multiplication and Sum Operations","=5*3+2"]
[null,{"$f":"5*3-2","v":13},"Multiplication and Substraction Operations","=5*3-2"]
[null,{"$f":"5*3*2","v":30},"Multiplication and Multiplication Operations","=5*3*2"]
[null,{"$f":"5*3/2","v":7.5},"Multiplication and Division Operations","=5*3/2"]

{"sheet":"Approach 7","index":7,"n_rows":11,"n_cols":4,"rows_kept":11,"cut":false,"hidden":false,"merged":[[2,1,2,3]]}
[]
[]
[null,"Narration of Different Formulas"]
[]
[null,"Performing","Narration","Formula "]
[null,{"$f":"5*3+2","v":17},"Multiplication and Sum Operations","=5*3+2"]
[null,{"$f":"5*3-2","v":13},"Multiplication and Substraction Operations","=5*3-2"]
[null,{"$f":"5*3-2","v":13}]
[null,{"$f":"5*3/2","v":7.5},"Multiplication and Division Operations","=5*3/2"]
[null,{"$f":"5*3/2.5","v":6},"Multiplication and Division Operations","=5*3/2.5"]
[null,{"$f":"5*3*2.5","v":37.5},"Multiplication and Multiplication Operations","=5*3*2.5"]

{"sheet":"Approach 8","index":8,"n_rows":12,"n_cols":4,"rows_kept":12,"cut":false,"hidden":false,"merged":[[2,1,2,3]]}
[]
[]
[null,"Narration of Different Formulas"]
[]
[null,"Performing","Narration","Formula "]
[null,{"$f":"5*3+2","v":17},"Multiplication and Sum Operations","=5*3+2"]
[null,{"$f":"5*3+2","v":17},"Multiplication and Substraction Operations","=5*3-2"]
[null,{"$f":"5*3-2","v":13},"Multiplication and Multiplication Operations","=5*3*2"]
[null,{"$f":"5*3*2","v":30},"Multiplication and Division Operations","=5*3/2"]
[null,{"$f":"5*3/2","v":7.5},"Multiplication and Division Operations","=5*3/2.5"]
[null,{"$f":"5*3/2.5","v":6},"Multiplication and Multiplication Operations","=5*3*2.5"]
[null,{"$f":"5*3*2.5","v":37.5}]

{"sheet":"Approach 9","index":9,"n_rows":22,"n_cols":4,"rows_kept":22,"cut":false,"hidden":false,"merged":[[2,1,2,3]]}
[]
[]
[null,"Narration of Different Formulas"]
[]
[null,"Performing","Narration","Formula "]
[null,{"$f":"5*3+2","v":17},"Multiplication and Sum Operations","=5*3+2"]
[null,{"$f":"5*3-2","v":13},"Multiplication and Substraction Operations","=5*3-2"]
[null,{"$f":"5*3*2","v":30},"Multiplication and Multiplication Operations","=5*3*2"]
[null,{"$f":"5*3/2","v":7.5},"Multiplication and Division Operations","=5*3/2"]
[null,{"$f":"5*3/2.5","v":6},"Multiplication and Division Operations","=5*3/2.5"]
[null,{"$f":"5*3*2.5","v":37.5},"Multiplication and Multiplication Operations","=5*3*2.5"]
[null,{"$f":"5*3*2.5","v":37.5}]
[null,37.5]
[null,37.5]
[null,37.5]
[null,37.5]
[null,37.5]
[null,37.5]
[null,37.5]
[null,37.5]
[null,37.5]
[null,37.5]

{"sheet":"Copy Clipboard","index":10,"n_rows":11,"n_cols":4,"rows_kept":11,"cut":false,"hidden":false,"merged":[[2,1,2,3]]}
[]
[]
[null,"Copy to Clipboard Using VBA"]
[]
[null,"Performing","Narration","Formula "]
[null,{"$f":"5*3+2","v":17},"Multiplication and Sum Operations","=5*3+2"]
[null,{"$f":"5*3-2","v":13},"Multiplication and Substraction Operations","=5*3-2"]
[null,{"$f":"5*3*2","v":30},"Multiplication and Multiplication Operations","=5*3*2"]
[null,{"$f":"5*3/2","v":7.5},"Multiplication and Division Operations","=5*3/2"]
[null,{"$f":"5*3/2.5","v":6},"Multiplication and Division Operations","=5*3/2.5"]
[null,{"$f":"5*3*2.5","v":37.5},"Multiplication and Multiplication Operations","=5*3*2.5"]

{"sheet":"Relative Reference","index":11,"n_rows":11,"n_cols":5,"rows_kept":11,"cut":false,"hidden":false,"merged":[[2,1,2,3]]}
[]
[]
[null,"VBA Copy Formula Relative Reference"]
[]
[null,"Performing","Narration","Formula "]
[null,{"$f":"5*3+2","v":17},"Multiplication and Sum Operations","=5*3+2",{"$f":"5*3+2","v":17}]
[null,{"$f":"5*3-2","v":13},"Multiplication and Substraction Operations","=5*3-2",{"$f":"5*3-2","v":13}]
[null,{"$f":"5*3*2","v":30},"Multiplication and Multiplication Operations","=5*3*2",{"$f":"5*3*2","v":30}]
[null,{"$f":"5*3/2","v":7.5},"Multiplication and Division Operations","=5*3/2",{"$f":"5*3/2","v":7.5}]
[null,{"$f":"5*3/2.5","v":6},"Multiplication and Division Operations","=5*3/2.5",{"$f":"5*3/2.5","v":6}]
[null,{"$f":"5*3*2.5","v":37.5},"Multiplication and Multiplication Operations","=5*3*2.5",{"$f":"5*3*2.5","v":37.5}]